[Event "January 2 Late 2024"]
[Site "https://www.chess.com"]
[Date "2024.01.02"]
[Round "4"]
[White "Korpics, Zsolt"]
[Black "Silvestre, Christian"]
[Result "1-0"]
[Board "160"]
[TimeControl "180+1"]
[WhiteFideId "705241"]
[BlackFideId "30956269"]
[WhiteElo "2508"]
[BlackElo "2321"]
[WhiteTeam "HUN"]
[BlackTeam "USA"]
[WhiteClock "0:00:29"]
[BlackClock "0:00:43"]

1. e4 {[%clk 0:03:00]}  c5 {[%clk 0:02:58]} 2. Nf3 {[%clk 0:03:01]}  d6 {[%clk 0:02:57]} 3. Nc3 {[%clk 0:03:00]}  Nf6 {[%clk 0:02:56]} 4. e5 {[%clk 0:03:01]}  dxe5 {[%clk 0:02:55]} 5. Nxe5 {[%clk 0:03:02]}  Nbd7 {[%clk 0:02:54]} 6. d4 {[%clk 0:03:02]}  Nxe5 {[%clk 0:02:44]} 7. dxe5 {[%clk 0:03:02]}  Qxd1+ {[%clk 0:02:43]} 8. Kxd1 {[%clk 0:03:03]}  Ng4 {[%clk 0:02:41]} 9. Bb5+ {[%clk 0:03:01]}  Kd8 {[%clk 0:02:31]} 10. Ke2 {[%clk 0:03:00]}  Nxe5 {[%clk 0:02:24]} 11. Rd1+ {[%clk 0:02:59]}  Nd7 {[%clk 0:02:21]} 12. Ne4 {[%clk 0:02:50]}  e6 {[%clk 0:02:11]} 13. Be3 {[%clk 0:02:49]}  Kc7 {[%clk 0:02:05]} 14. Bxd7 {[%clk 0:02:30]}  Bxd7 {[%clk 0:02:03]} 15. Bxc5 {[%clk 0:02:14]}  Bb5+ {[%clk 0:01:59]} 16. Ke3 {[%clk 0:02:09]}  Bc6 {[%clk 0:01:57]} 17. Bxf8 {[%clk 0:02:09]}  Rhxf8 {[%clk 0:01:55]} 18. Rd2 {[%clk 0:02:06]}  Bxe4 {[%clk 0:01:50]} 19. Kxe4 {[%clk 0:02:05]}  Rad8 {[%clk 0:01:50]} 20. Rad1 {[%clk 0:01:53]}  Rxd2 {[%clk 0:01:49]} 21. Rxd2 {[%clk 0:01:54]}  Rd8 {[%clk 0:01:48]} 22. Rxd8 {[%clk 0:01:49]}  Kxd8 {[%clk 0:01:49]} 23. Kd4 {[%clk 0:01:48]}  Kd7 {[%clk 0:01:48]} 24. Kc5 {[%clk 0:01:45]}  Kc7 {[%clk 0:01:47]} 25. c4 {[%clk 0:01:42]}  b6+ {[%clk 0:01:46]} 26. Kb5 {[%clk 0:01:41]}  Kb7 {[%clk 0:01:47]} 27. c5 {[%clk 0:01:40]}  a6+ {[%clk 0:01:46]} 28. Kc4 {[%clk 0:01:39]}  Kc6 {[%clk 0:01:45]} 29. cxb6 {[%clk 0:01:39]}  Kxb6 {[%clk 0:01:46]} 30. b4 {[%clk 0:01:37]}  h5 {[%clk 0:01:40]} 31. a4 {[%clk 0:01:33]}  Kc6 {[%clk 0:01:39]} 32. Kd4 {[%clk 0:01:31]}  f6 {[%clk 0:01:38]} 33. Ke4 {[%clk 0:01:31]}  g5 {[%clk 0:01:35]} 34. Kd4 {[%clk 0:01:31]}  Kb6 {[%clk 0:01:33]} 35. Ke4 {[%clk 0:01:28]}  Kc6 {[%clk 0:01:26]} 36. h3 {[%clk 0:01:19]}  Kb6 {[%clk 0:01:23]} 37. g3 {[%clk 0:01:06]}  Kc6 {[%clk 0:01:23]} 38. f4 {[%clk 0:01:01]}  g4 {[%clk 0:01:12]} 39. h4 {[%clk 0:00:36]}  Kd6 {[%clk 0:01:09]} 40. Kd4 {[%clk 0:00:34]}  Kc6 {[%clk 0:01:07]} 41. Kc4 {[%clk 0:00:30]}  Kb6 {[%clk 0:01:06]} 42. b5 {[%clk 0:00:29]}  axb5+ {[%clk 0:01:05]} 43. axb5 {[%clk 0:00:30]}  e5 {[%clk 0:00:59]} 44. fxe5 {[%clk 0:00:27]}  fxe5 {[%clk 0:01:00]} 45. Kd5 {[%clk 0:00:27]}  Kxb5 {[%clk 0:01:00]} 46. Kxe5 {[%clk 0:00:28]}  Kc5 {[%clk 0:01:00]} 47. Kf5 {[%clk 0:00:28]}  Kd5 {[%clk 0:01:01]} 48. Kg5 {[%clk 0:00:29]}  Ke5 {[%clk 0:01:01]} 49. Kxh5 {[%clk 0:00:29]}  Kf5 {[%clk 0:01:01]} 50. Kh6 {[%clk 0:00:29]}  Kf6 {[%clk 0:00:43]} 51. h5 {[%clk 0:00:29]} 1-0

[Event "January 2 Late 2024"]
[Site "https://www.chess.com"]
[Date "2024.01.02"]
[Round "4"]
[White "Travadon, Loic"]
[Black "Mazi, Leon"]
[Result "1-0"]
[Board "161"]
[TimeControl "180+1"]
[WhiteFideId "26092131"]
[BlackFideId "14600315"]
[WhiteElo "2319"]
[BlackElo "2506"]
[WhiteTeam "FRA"]
[BlackTeam "SLO"]
[WhiteClock "0:00:14"]
[BlackClock "0:00:39"]

1. e4 {[%clk 0:03:00]}  c5 {[%clk 0:02:59]} 2. Nc3 {[%clk 0:02:59]}  a6 {[%clk 0:02:58]} 3. Nf3 {[%clk 0:02:57]}  Nc6 {[%clk 0:02:56]} 4. g3 {[%clk 0:02:56]}  b5 {[%clk 0:02:55]} 5. Bg2 {[%clk 0:02:57]}  e6 {[%clk 0:02:52]} 6. O-O {[%clk 0:02:56]}  Bb7 {[%clk 0:02:47]} 7. d3 {[%clk 0:02:52]}  Be7 {[%clk 0:02:39]} 8. a4 {[%clk 0:02:50]}  b4 {[%clk 0:02:38]} 9. Ne2 {[%clk 0:02:49]}  Nf6 {[%clk 0:02:36]} 10. h4 {[%clk 0:02:46]}  d5 {[%clk 0:02:35]} 11. e5 {[%clk 0:02:43]}  Nd7 {[%clk 0:02:34]} 12. Bf4 {[%clk 0:02:37]}  h6 {[%clk 0:02:33]} 13. h5 {[%clk 0:02:34]}  g5 {[%clk 0:02:31]} 14. hxg6 {[%clk 0:02:34]}  fxg6 {[%clk 0:02:31]} 15. d4 {[%clk 0:02:32]}  g5 {[%clk 0:02:25]} 16. Be3 {[%clk 0:02:28]}  Qc7 {[%clk 0:02:17]} 17. c3 {[%clk 0:02:25]}  bxc3 {[%clk 0:02:14]} 18. bxc3 {[%clk 0:02:23]}  Na5 {[%clk 0:02:14]} 19. Nd2 {[%clk 0:01:58]}  Nb6 {[%clk 0:02:05]} 20. dxc5 {[%clk 0:01:42]}  Bxc5 {[%clk 0:02:00]} 21. Bxc5 {[%clk 0:01:43]}  Qxc5 {[%clk 0:02:00]} 22. Nd4 {[%clk 0:01:43]}  Ke7 {[%clk 0:01:56]} 23. Rb1 {[%clk 0:01:29]}  Rab8 {[%clk 0:01:46]} 24. Qf3 {[%clk 0:01:16]}  Nd7 {[%clk 0:01:36]} 25. N2b3 {[%clk 0:01:00]}  Nxb3 {[%clk 0:01:35]} 26. Rxb3 {[%clk 0:01:01]}  Qc7 {[%clk 0:01:32]} 27. Bh3 {[%clk 0:00:56]}  Nxe5 {[%clk 0:01:21]} 28. Qe2 {[%clk 0:00:38]}  g4 {[%clk 0:01:19]} 29. Bxg4 {[%clk 0:00:34]}  h5 {[%clk 0:01:12]} 30. Bxe6 {[%clk 0:00:32]}  h4 {[%clk 0:01:13]} 31. f4 {[%clk 0:00:21]}  hxg3 {[%clk 0:01:05]} 32. fxe5 {[%clk 0:00:18]}  Rbf8 {[%clk 0:01:01]} 33. Rxf8 {[%clk 0:00:18]}  Rxf8 {[%clk 0:01:00]} 34. Bg4 {[%clk 0:00:18]}  Bc8 {[%clk 0:00:57]} 35. Bxc8 {[%clk 0:00:17]}  Qxc8 {[%clk 0:00:57]} 36. Rb6 {[%clk 0:00:17]}  Qh3 {[%clk 0:00:54]} 37. Re6+ {[%clk 0:00:16]}  Kd7 {[%clk 0:00:50]} 38. Rd6+ {[%clk 0:00:16]}  Ke7 {[%clk 0:00:48]} 39. Nc6+ {[%clk 0:00:16]}  Ke8 {[%clk 0:00:47]} 40. Rd8+ {[%clk 0:00:16]}  Kf7 {[%clk 0:00:46]} 41. Qf1+ {[%clk 0:00:14]}  Kg6 {[%clk 0:00:39]} 42. Qxh3 {[%clk 0:00:14]} 1-0

[Event "January 2 Late 2024"]
[Site "https://www.chess.com"]
[Date "2024.01.02"]
[Round "4"]
[White "Shuvalov, Evgenij"]
[Black "Romero Ruscalleda, Josep"]
[Result "1/2-1/2"]
[Board "162"]
[TimeControl "180+1"]
[WhiteFideId "4187237"]
[BlackFideId "2231859"]
[WhiteElo "2505"]
[BlackElo "2316"]
[WhiteTeam "FID"]
[BlackTeam "ESP"]
[WhiteClock "0:00:40"]
[BlackClock "0:00:47"]

1. d4 {[%clk 0:02:54]}  g6 {[%clk 0:03:00]} 2. c4 {[%clk 0:02:53]}  Bg7 {[%clk 0:03:00]} 3. e4 {[%clk 0:02:53]}  d6 {[%clk 0:03:00]} 4. Nc3 {[%clk 0:02:52]}  Nc6 {[%clk 0:03:00]} 5. Be3 {[%clk 0:02:50]}  e5 {[%clk 0:03:00]} 6. dxe5 {[%clk 0:02:48]}  Nxe5 {[%clk 0:02:59]} 7. f3 {[%clk 0:02:32]}  Ne7 {[%clk 0:02:55]} 8. Qd2 {[%clk 0:02:32]}  N7c6 {[%clk 0:02:54]} 9. h4 {[%clk 0:02:27]}  h5 {[%clk 0:02:52]} 10. O-O-O {[%clk 0:02:26]}  Be6 {[%clk 0:02:51]} 11. c5 {[%clk 0:02:24]}  dxc5 {[%clk 0:02:43]} 12. Qxd8+ {[%clk 0:02:20]}  Rxd8 {[%clk 0:02:42]} 13. Rxd8+ {[%clk 0:02:18]}  Kxd8 {[%clk 0:02:38]} 14. Bxc5 {[%clk 0:02:18]}  Kc8 {[%clk 0:02:35]} 15. Nh3 {[%clk 0:02:16]}  Bxh3 {[%clk 0:02:32]} 16. Rxh3 {[%clk 0:02:14]}  Rd8 {[%clk 0:02:32]} 17. Kc2 {[%clk 0:02:11]}  Nd4+ {[%clk 0:02:22]} 18. Bxd4 {[%clk 0:02:10]}  Rxd4 {[%clk 0:02:21]} 19. Be2 {[%clk 0:02:09]}  Bh6 {[%clk 0:02:20]} 20. Nb1 {[%clk 0:02:06]}  c5 {[%clk 0:02:15]} 21. Rh1 {[%clk 0:02:00]}  Bf4 {[%clk 0:02:04]} 22. Rd1 {[%clk 0:01:47]}  Rxd1 {[%clk 0:02:02]} 23. Kxd1 {[%clk 0:01:48]}  Bg3 {[%clk 0:02:02]} 24. Nc3 {[%clk 0:01:45]}  Bxh4 {[%clk 0:02:01]} 25. f4 {[%clk 0:01:45]}  Nd7 {[%clk 0:01:52]} 26. g4 {[%clk 0:01:45]}  Bg3 {[%clk 0:01:44]} 27. gxh5 {[%clk 0:01:43]}  Bxf4 {[%clk 0:01:42]} 28. hxg6 {[%clk 0:01:41]}  fxg6 {[%clk 0:01:42]} 29. Nd5 {[%clk 0:01:41]}  Be5 {[%clk 0:01:40]} 30. Ne7+ {[%clk 0:01:37]}  Kd8 {[%clk 0:01:36]} 31. Nxg6 {[%clk 0:01:38]}  Bxb2 {[%clk 0:01:36]} 32. Nf4 {[%clk 0:01:35]}  Ke7 {[%clk 0:01:33]} 33. Nd3 {[%clk 0:01:32]}  Bd4 {[%clk 0:01:32]} 34. Bg4 {[%clk 0:01:32]}  Nf6 {[%clk 0:01:29]} 35. Bf5 {[%clk 0:01:31]}  b6 {[%clk 0:01:27]} 36. Kc2 {[%clk 0:01:30]}  Kd6 {[%clk 0:01:27]} 37. Kb3 {[%clk 0:01:29]}  Nd7 {[%clk 0:01:22]} 38. Bxd7 {[%clk 0:01:27]}  Kxd7 {[%clk 0:01:23]} 39. Kc4 {[%clk 0:01:27]}  Kd6 {[%clk 0:01:23]} 40. a4 {[%clk 0:01:27]}  a6 {[%clk 0:01:23]} 41. Nf4 {[%clk 0:00:58]}  Kc6 {[%clk 0:01:16]} 42. Ne6 {[%clk 0:00:57]}  b5+ {[%clk 0:01:15]} 43. axb5+ {[%clk 0:00:57]}  axb5+ {[%clk 0:01:15]} 44. Kd3 {[%clk 0:00:58]}  Be5 {[%clk 0:01:14]} 45. Nd8+ {[%clk 0:00:54]}  Kb6 {[%clk 0:01:11]} 46. Nf7 {[%clk 0:00:53]}  Bg7 {[%clk 0:01:06]} 47. e5 {[%clk 0:00:53]}  Kc6 {[%clk 0:01:06]} 48. Ke4 {[%clk 0:00:53]}  b4 {[%clk 0:01:05]} 49. Ng5 {[%clk 0:00:52]}  b3 {[%clk 0:01:02]} 50. Nf3 {[%clk 0:00:51]}  b2 {[%clk 0:01:01]} 51. Nd2 {[%clk 0:00:51]}  Kb5 {[%clk 0:00:58]} 52. e6 {[%clk 0:00:47]}  Bf6 {[%clk 0:00:57]} 53. Kd3 {[%clk 0:00:45]}  c4+ {[%clk 0:00:54]} 54. Kc2 {[%clk 0:00:45]}  c3 {[%clk 0:00:54]} 55. Ne4 {[%clk 0:00:44]}  Be7 {[%clk 0:00:47]} 56. Nxc3+ {[%clk 0:00:44]}  Kc6 {[%clk 0:00:47]} 57. Kxb2 {[%clk 0:00:41]}  Kd6 {[%clk 0:00:47]} 58. Kb3 {[%clk 0:00:40]}  Kxe6 {[%clk 0:00:47]} 1/2-1/2

[Event "January 2 Late 2024"]
[Site "https://www.chess.com"]
[Date "2024.01.02"]
[Round "4"]
[White "Fernandez Siles, Luis"]
[Black "N_Mullodzhanov"]
[Result "0-1"]
[Board "163"]
[TimeControl "180+1"]
[WhiteFideId "2209420"]
[WhiteElo "2307"]
[BlackElo "2502"]
[WhiteTeam "ESP"]
[WhiteClock "0:00:03"]
[BlackClock "0:00:01"]

1. e4 {[%clk 0:03:00]}  c6 {[%clk 0:02:59]} 2. d4 {[%clk 0:03:00]}  d5 {[%clk 0:03:00]} 3. exd5 {[%clk 0:03:01]}  cxd5 {[%clk 0:03:01]} 4. c4 {[%clk 0:03:01]}  Nf6 {[%clk 0:03:01]} 5. Nc3 {[%clk 0:03:02]}  e6 {[%clk 0:02:59]} 6. Nf3 {[%clk 0:03:01]}  Nc6 {[%clk 0:02:58]} 7. cxd5 {[%clk 0:03:00]}  Nxd5 {[%clk 0:02:59]} 8. Bd3 {[%clk 0:03:00]}  Bb4 {[%clk 0:02:58]} 9. Bd2 {[%clk 0:02:59]}  O-O {[%clk 0:02:46]} 10. O-O {[%clk 0:02:58]}  h6 {[%clk 0:02:43]} 11. a3 {[%clk 0:02:46]}  Be7 {[%clk 0:02:42]} 12. Bc2 {[%clk 0:02:38]}  b6 {[%clk 0:02:39]} 13. Qe2 {[%clk 0:02:35]}  Bf6 {[%clk 0:02:35]} 14. Qd3 {[%clk 0:02:27]}  g6 {[%clk 0:02:32]} 15. Bxh6 {[%clk 0:02:27]}  Re8 {[%clk 0:02:28]} 16. Bb3 {[%clk 0:02:14]}  Nc7 {[%clk 0:02:22]} 17. Rad1 {[%clk 0:01:59]}  Na5 {[%clk 0:02:21]} 18. Ba4 {[%clk 0:01:42]}  Ba6 {[%clk 0:02:19]} 19. Qe4 {[%clk 0:01:33]}  b5 {[%clk 0:02:14]} 20. Bc2 {[%clk 0:01:16]}  b4 {[%clk 0:02:14]} 21. axb4 {[%clk 0:01:15]}  Bxf1 {[%clk 0:02:13]} 22. bxa5 {[%clk 0:01:14]}  Bc4 {[%clk 0:02:09]} 23. Ba4 {[%clk 0:01:09]}  Re7 {[%clk 0:02:08]} 24. Ne5 {[%clk 0:01:06]}  Bd5 {[%clk 0:02:04]} 25. Qf4 {[%clk 0:01:02]}  Bg7 {[%clk 0:02:02]} 26. Ng4 {[%clk 0:00:49]}  f5 {[%clk 0:01:55]} 27. Ne5 {[%clk 0:00:33]}  Bxe5 {[%clk 0:01:47]} 28. dxe5 {[%clk 0:00:30]}  Rh7 {[%clk 0:01:39]} 29. Bg5 {[%clk 0:00:26]}  Qb8 {[%clk 0:01:33]} 30. Bf6 {[%clk 0:00:17]}  Qb7 {[%clk 0:01:30]} 31. Qg3 {[%clk 0:00:16]}  Kf7 {[%clk 0:01:30]} 32. Ne2 {[%clk 0:00:15]}  Rg8 {[%clk 0:01:02]} 33. Qg5 {[%clk 0:00:15]}  Rh5 {[%clk 0:01:00]} 34. Qc1 {[%clk 0:00:14]}  g5 {[%clk 0:00:53]} 35. Ng3 {[%clk 0:00:13]}  Rh4 {[%clk 0:00:47]} 36. Bxg5 {[%clk 0:00:13]}  Rxa4 {[%clk 0:00:46]} 37. Bf6 {[%clk 0:00:12]}  Rg6 {[%clk 0:00:36]} 38. Qc5 {[%clk 0:00:12]}  Na6 {[%clk 0:00:32]} 39. Qd6 {[%clk 0:00:10]}  Bxg2 {[%clk 0:00:30]} 40. Qd7+ {[%clk 0:00:03]}  Qxd7 {[%clk 0:00:21]} 41. Rxd7+ {[%clk 0:00:04]}  Ke8 {[%clk 0:00:21]} 42. Re7+ {[%clk 0:00:05]}  Kf8 {[%clk 0:00:22]} 43. Kxg2 {[%clk 0:00:06]}  f4 {[%clk 0:00:21]} 44. Rxa7 {[%clk 0:00:06]}  Rxa5 {[%clk 0:00:17]} 45. h4 {[%clk 0:00:05]}  fxg3 {[%clk 0:00:17]} 46. f4 {[%clk 0:00:06]}  Ra2 {[%clk 0:00:15]} 47. h5 {[%clk 0:00:06]}  Rxb2+ {[%clk 0:00:13]} 48. Kg1 {[%clk 0:00:06]}  Rb1+ {[%clk 0:00:11]} 49. Kg2 {[%clk 0:00:06]}  Rg4 {[%clk 0:00:08]} 50. Ra8+ {[%clk 0:00:04]}  Kf7 {[%clk 0:00:08]} 51. Ra7+ {[%clk 0:00:03]}  Ke8 {[%clk 0:00:04]} 52. h6 {[%clk 0:00:04]}  Rb2+ {[%clk 0:00:03]} 53. Kf3 {[%clk 0:00:04]}  g2 {[%clk 0:00:02]} 54. h7 {[%clk 0:00:04]}  Rg3+ {[%clk 0:00:01]} 55. Ke4 {[%clk 0:00:03]}  Rb4# {[%clk 0:00:01]} 0-1

[Event "January 2 Late 2024"]
[Site "https://www.chess.com"]
[Date "2024.01.02"]
[Round "4"]
[White "SkinnyPuppy8"]
[Black "Sonnenschein, Philipp"]
[Result "0-1"]
[Board "165"]
[TimeControl "180+1"]
[BlackFideId "16250877"]
[WhiteElo "2302"]
[BlackElo "2500"]
[BlackTeam "GER"]
[WhiteClock "0:00:00"]
[BlackClock "0:00:07"]

1. e4 {[%clk 0:02:59]}  c6 {[%clk 0:02:59]} 2. Nc3 {[%clk 0:02:58]}  d5 {[%clk 0:03:00]} 3. Nf3 {[%clk 0:02:59]}  Bg4 {[%clk 0:02:59]} 4. exd5 {[%clk 0:02:59]}  cxd5 {[%clk 0:03:00]} 5. Ne5 {[%clk 0:02:59]}  Bxd1 {[%clk 0:02:19]} 6. Bb5+ {[%clk 0:02:59]}  Nc6 {[%clk 0:02:19]} 7. Nxc6 {[%clk 0:02:59]}  Qb6 {[%clk 0:01:49]} 8. Ne5+ {[%clk 0:02:59]}  Kd8 {[%clk 0:01:49]} 9. Nxf7+ {[%clk 0:03:00]}  Kc8 {[%clk 0:01:48]} 10. Kxd1 {[%clk 0:03:00]}  d4 {[%clk 0:01:38]} 11. Be2 {[%clk 0:02:57]}  dxc3 {[%clk 0:01:33]} 12. bxc3 {[%clk 0:02:57]}  Qg6 {[%clk 0:01:27]} 13. Nxh8 {[%clk 0:02:50]}  Qxg2 {[%clk 0:01:27]} 14. Rf1 {[%clk 0:02:48]}  Nh6 {[%clk 0:01:26]} 15. Ba3 {[%clk 0:02:41]}  g6 {[%clk 0:01:20]} 16. Rb1 {[%clk 0:02:36]}  Bg7 {[%clk 0:01:16]} 17. Bxe7 {[%clk 0:02:32]}  Bxh8 {[%clk 0:01:13]} 18. Bd6 {[%clk 0:02:28]}  Nf5 {[%clk 0:01:06]} 19. Bg3 {[%clk 0:02:23]}  Kd7 {[%clk 0:01:00]} 20. Bb5+ {[%clk 0:02:10]}  Ke7 {[%clk 0:00:54]} 21. Re1+ {[%clk 0:02:08]}  Kf8 {[%clk 0:00:49]} 22. Bf1 {[%clk 0:01:57]}  Qf3+ {[%clk 0:00:48]} 23. Be2 {[%clk 0:01:52]}  Qd5 {[%clk 0:00:49]} 24. c4 {[%clk 0:01:39]}  Qd7 {[%clk 0:00:41]} 25. Bf3 {[%clk 0:01:35]}  Rd8 {[%clk 0:00:36]} 26. d3 {[%clk 0:01:27]}  Nxg3 {[%clk 0:00:33]} 27. hxg3 {[%clk 0:01:21]}  b6 {[%clk 0:00:31]} 28. Rb5 {[%clk 0:01:17]}  Qf7 {[%clk 0:00:28]} 29. Be2 {[%clk 0:01:03]}  Bc3 {[%clk 0:00:28]} 30. Rf1 {[%clk 0:01:03]}  Qg7 {[%clk 0:00:24]} 31. f4 {[%clk 0:01:00]}  Re8 {[%clk 0:00:22]} 32. f5 {[%clk 0:01:00]}  g5 {[%clk 0:00:23]} 33. f6 {[%clk 0:00:59]}  Qg6 {[%clk 0:00:20]} 34. Rff5 {[%clk 0:00:53]}  h6 {[%clk 0:00:19]} 35. Bg4 {[%clk 0:00:44]}  Bxf6 {[%clk 0:00:17]} 36. c3 {[%clk 0:00:38]}  Kg7 {[%clk 0:00:17]} 37. Rbd5 {[%clk 0:00:36]}  Re7 {[%clk 0:00:16]} 38. Rd6 {[%clk 0:00:33]}  h5 {[%clk 0:00:14]} 39. Rdxf6 {[%clk 0:00:28]}  Qxf6 {[%clk 0:00:14]} 40. Rxf6 {[%clk 0:00:27]}  Kxf6 {[%clk 0:00:14]} 41. Bxh5 {[%clk 0:00:28]}  Re3 {[%clk 0:00:14]} 42. g4 {[%clk 0:00:25]}  Rxd3+ {[%clk 0:00:14]} 43. Kc2 {[%clk 0:00:25]}  Rg3 {[%clk 0:00:14]} 44. Kb3 {[%clk 0:00:25]}  Ke5 {[%clk 0:00:14]} 45. Kb4 {[%clk 0:00:23]}  Rg2 {[%clk 0:00:13]} 46. a4 {[%clk 0:00:23]}  Rb2+ {[%clk 0:00:12]} 47. Ka3 {[%clk 0:00:20]}  Rb1 {[%clk 0:00:12]} 48. Bg6 {[%clk 0:00:19]}  Rg1 {[%clk 0:00:11]} 49. Bf5 {[%clk 0:00:19]}  Kd6 {[%clk 0:00:11]} 50. Kb4 {[%clk 0:00:18]}  a6 {[%clk 0:00:07]} 51. c5+ {[%clk 0:00:17]}  bxc5+ {[%clk 0:00:07]} 52. Ka5 {[%clk 0:00:17]}  Rc1 {[%clk 0:00:05]} 53. Kxa6 {[%clk 0:00:18]}  Rxc3 {[%clk 0:00:05]} 54. Kb5 {[%clk 0:00:18]}  Rb3+ {[%clk 0:00:05]} 55. Ka5 {[%clk 0:00:11]}  c4 {[%clk 0:00:04]} 56. Bc2 {[%clk 0:00:04]}  Rb2 {[%clk 0:00:04]} 57. Bf5 {[%clk 0:00:03]}  c3 {[%clk 0:00:05]} 58. Ka6 {[%clk 0:00:03]}  c2 {[%clk 0:00:05]} 59. Bxc2 {[%clk 0:00:03]}  Rxc2 {[%clk 0:00:06]} 60. Kb5 {[%clk 0:00:04]}  Rb2+ {[%clk 0:00:06]} 61. Kc4 {[%clk 0:00:04]}  Ra2 {[%clk 0:00:07]} 62. Kb3 {[%clk 0:00:03]}  Ra1 {[%clk 0:00:07]} 63. Kb4 {[%clk 0:00:04]}  Ke5 {[%clk 0:00:07]} 64. a5 {[%clk 0:00:00]}  Kf4 {[%clk 0:00:07]} 0-1

[Event "January 2 Late 2024"]
[Site "https://www.chess.com"]
[Date "2024.01.02"]
[Round "4"]
[White "Play, Gilles"]
[Black "Nechitaylo, Nikita"]
[Result "1-0"]
[Board "166"]
[TimeControl "180+1"]
[WhiteFideId "45130892"]
[BlackFideId "34138161"]
[WhiteElo "2496"]
[BlackElo "2301"]
[WhiteTeam "FRA"]
[BlackTeam "UKR"]
[WhiteClock "0:00:20"]
[BlackClock "0:00:02"]

1. d4 {[%clk 0:03:00]}  Nf6 {[%clk 0:02:59]} 2. Nf3 {[%clk 0:02:58]}  e6 {[%clk 0:02:59]} 3. c4 {[%clk 0:02:56]}  c5 {[%clk 0:02:58]} 4. Nc3 {[%clk 0:02:52]}  cxd4 {[%clk 0:02:59]} 5. Nxd4 {[%clk 0:02:52]}  Nc6 {[%clk 0:03:00]} 6. g3 {[%clk 0:02:52]}  Qb6 {[%clk 0:02:58]} 7. Nc2 {[%clk 0:02:37]}  Ne5 {[%clk 0:02:56]} 8. Bg2 {[%clk 0:02:34]}  Nxc4 {[%clk 0:02:45]} 9. O-O {[%clk 0:02:32]}  d5 {[%clk 0:02:44]} 10. e4 {[%clk 0:02:28]}  dxe4 {[%clk 0:02:37]} 11. b3 {[%clk 0:02:27]}  Nd6 {[%clk 0:02:31]} 12. Be3 {[%clk 0:02:26]}  Qc7 {[%clk 0:02:32]} 13. Bd4 {[%clk 0:02:21]}  Be7 {[%clk 0:02:32]} 14. Rc1 {[%clk 0:02:15]}  O-O {[%clk 0:02:31]} 15. Ne3 {[%clk 0:02:14]}  Qa5 {[%clk 0:02:20]} 16. Bxf6 {[%clk 0:02:10]}  Bxf6 {[%clk 0:02:18]} 17. Nxe4 {[%clk 0:01:53]}  Nxe4 {[%clk 0:02:14]} 18. Bxe4 {[%clk 0:01:54]}  Rd8 {[%clk 0:02:08]} 19. Qf3 {[%clk 0:01:42]}  Rb8 {[%clk 0:01:30]} 20. Rfd1 {[%clk 0:01:39]}  Bd7 {[%clk 0:01:27]} 21. Ng4 {[%clk 0:01:35]}  Bg5 {[%clk 0:01:23]} 22. b4 {[%clk 0:01:10]}  Qb6 {[%clk 0:00:50]} 23. Bxh7+ {[%clk 0:00:49]}  Kxh7 {[%clk 0:00:47]} 24. Qxf7 {[%clk 0:00:44]}  Be8 {[%clk 0:00:16]} 25. Qf3 {[%clk 0:00:39]}  Bxc1 {[%clk 0:00:13]} 26. Rxc1 {[%clk 0:00:40]}  Rbc8 {[%clk 0:00:11]} 27. Re1 {[%clk 0:00:41]}  Qxb4 {[%clk 0:00:10]} 28. Rxe6 {[%clk 0:00:37]}  Rc1+ {[%clk 0:00:10]} 29. Kg2 {[%clk 0:00:35]}  Bc6 {[%clk 0:00:08]} 30. Rxc6 {[%clk 0:00:31]}  bxc6 {[%clk 0:00:09]} 31. Ne5 {[%clk 0:00:28]}  Kg8 {[%clk 0:00:02]} 32. Qf7+ {[%clk 0:00:27]}  Kh8 {[%clk 0:00:02]} 33. Ng6+ {[%clk 0:00:23]}  Kh7 {[%clk 0:00:02]} 34. Qf5 {[%clk 0:00:21]}  Qd4 {[%clk 0:00:02]} 35. Ne7+ {[%clk 0:00:20]}  Kh8 {[%clk 0:00:02]} 36. Qh5# {[%clk 0:00:20]} 1-0

[Event "January 2 Late 2024"]
[Site "https://www.chess.com"]
[Date "2024.01.02"]
[Round "4"]
[White "Suvorov, Luca"]
[Black "Burdalev, Kirill"]
[Result "1-0"]
[Board "175"]
[TimeControl "180+1"]
[WhiteFideId "12977071"]
[BlackFideId "14121913"]
[WhiteElo "2478"]
[BlackElo "2259"]
[WhiteTeam "GER"]
[BlackTeam "CZE"]
[WhiteClock "0:01:05"]
[BlackClock "0:01:30"]

1. Nf3 {[%clk 0:03:00]}  d5 {[%clk 0:02:57]} 2. g3 {[%clk 0:02:58]}  c6 {[%clk 0:02:57]} 3. Bg2 {[%clk 0:02:59]}  Bg4 {[%clk 0:02:54]} 4. O-O {[%clk 0:02:59]}  Nd7 {[%clk 0:02:53]} 5. d3 {[%clk 0:02:56]}  e5 {[%clk 0:02:52]} 6. Nbd2 {[%clk 0:02:30]}  Ngf6 {[%clk 0:02:50]} 7. e4 {[%clk 0:02:24]}  dxe4 {[%clk 0:02:50]} 8. dxe4 {[%clk 0:02:22]}  Be7 {[%clk 0:02:51]} 9. h3 {[%clk 0:02:20]}  Bh5 {[%clk 0:02:49]} 10. Qe1 {[%clk 0:02:20]}  O-O {[%clk 0:02:47]} 11. Nh4 {[%clk 0:02:20]}  Re8 {[%clk 0:02:45]} 12. Nf5 {[%clk 0:02:19]}  Bf8 {[%clk 0:02:45]} 13. a4 {[%clk 0:02:16]}  a5 {[%clk 0:02:41]} 14. Nc4 {[%clk 0:02:15]}  Qc7 {[%clk 0:02:41]} 15. g4 {[%clk 0:02:06]}  Bg6 {[%clk 0:02:40]} 16. Bd2 {[%clk 0:02:00]}  b6 {[%clk 0:02:35]} 17. Bc3 {[%clk 0:01:59]}  Rad8 {[%clk 0:02:20]} 18. b3 {[%clk 0:01:52]}  Bc5 {[%clk 0:02:16]} 19. Rd1 {[%clk 0:01:46]}  Bxf5 {[%clk 0:02:02]} 20. exf5 {[%clk 0:01:44]}  Be3 {[%clk 0:02:02]} 21. Nxe3 {[%clk 0:01:38]}  Nc5 {[%clk 0:01:57]} 22. Rxd8 {[%clk 0:01:31]}  Rxd8 {[%clk 0:01:58]} 23. Nc4 {[%clk 0:01:30]}  Nfd7 {[%clk 0:01:55]} 24. Bxe5 {[%clk 0:01:28]}  Qa7 {[%clk 0:01:53]} 25. Ba1 {[%clk 0:01:24]}  Nf6 {[%clk 0:01:52]} 26. Bxf6 {[%clk 0:01:23]}  gxf6 {[%clk 0:01:53]} 27. Qc3 {[%clk 0:01:23]}  Kg7 {[%clk 0:01:47]} 28. g5 {[%clk 0:01:22]}  Nd7 {[%clk 0:01:46]} 29. Rd1 {[%clk 0:01:16]}  Re8 {[%clk 0:01:45]} 30. Nd6 {[%clk 0:01:13]}  Re5 {[%clk 0:01:44]} 31. gxf6+ {[%clk 0:01:08]}  Kxf6 {[%clk 0:01:34]} 32. Nc4 {[%clk 0:01:07]}  Qc7 {[%clk 0:01:33]} 33. Rxd7 {[%clk 0:01:06]}  Qxd7 {[%clk 0:01:34]} 34. Qxe5+ {[%clk 0:01:07]}  Kg5 {[%clk 0:01:34]} 35. f6+ {[%clk 0:01:07]}  Qf5 {[%clk 0:01:34]} 36. h4+ {[%clk 0:01:05]}  Kxh4 {[%clk 0:01:30]} 37. Qxf5 {[%clk 0:01:05]} 1-0